bitfinex/quotes_ETHUSD_20250807
["timestamp","ask_amount","ask_price","bid_price","bid_amount"]
[1754572376183,1.41096954,3844.6,3844.5,10.22308695]
[1754572377791,0.37346954,3844.6,3844.5,10.22308695]
[1754572378392,1.41096954,3844.6,3844.5,10.22308695]
[1754572379387,1.83986954,3844.6,3844.5,10.22308695]
[1754572379585,1.41105145,3844.6,3844.5,10.22308695]
[1754572382170,0.37355145,3844.6,3844.5,10.22308695]
[1754572382558,1.41105145,3844.6,3844.5,10.22308695]
[1754572384292,0.1304,3844.6,3844.5,10.22308695]
[1754572384459,4.3758239,3844.6,3844.5,13.28590543]
[1754572384900,0.1304,3844.6,3844.5,34.72517028]
[1754572385085,4.002,3844.9,3844.6,2.60105082]
[1754572385288,4.002,3844.9,3844.8,10.22308695]
[1754572385807,4.002,3844.9,3844.8,12.82400247]
[1754572386399,4.002,3844.9,3844.8,29.32299247]
[1754572386588,4.002,3844.9,3844.8,29.70178947]
[1754572386880,4.002,3844.9,3844.8,26.95678947]
[1754572387303,1.0375,3845.2,3844.8,24.35587395]
[1754572387515,4.002,3845.0,3844.4,2.60115231]
[1754572387672,1.0375,3844.9,3844.6,2.60103413]
[1754572388378,1.0375,3844.9,3844.7,2.60097357]
[1754572388579,1.0375,3844.9,3844.8,10.22308695]
[1754572388983,1.0375,3844.9,3844.8,12.82400247]
[1754572389183,4.002,3845.0,3844.8,12.82400247]
[1754572389385,5.0395,3845.0,3844.8,12.82400247]
[1754572389702,5.0395,3845.0,3844.8,10.22308695]
[1754572390095,5.0395,3845.0,3844.8,12.82399344]
[1754572390301,5.0395,3845.0,3844.8,10.22308695]
[1754572391072,4.002,3845.0,3844.8,12.82398759]
[1754572391287,4.002,3845.0,3844.8,10.68478695]
[1754572391487,4.002,3845.0,3844.8,10.22308695]
[1754572391677,5.0395,3845.0,3844.8,10.22308695]
[1754572391984,1.0375,3844.9,3844.8,10.22308695]
[1754572396893,1.28104969,3844.9,3844.8,10.22308695]
[1754572399188,0.24354969,3844.9,3844.8,12.82400247]
[1754572399409,0.24354969,3844.9,3844.8,16.28570247]
[1754572399652,4.002,3845.0,3844.9,2.60084787]
[1754572399835,4.24554657,3845.0,3844.9,2.60084787]
[1754572400186,3.64198131,3845.8,3845.0,23.830805]
[1754572400514,2.60028131,3845.8,3845.7,10.22308695]
[1754572400820,7.06668131,3845.8,3845.7,10.22308695]
[1754572401022,8.10838131,3845.8,3845.7,10.22308695]
[1754572402689,6.2623244,3845.8,3845.7,10.22308695]
[1754572403032,6.2623244,3845.8,3845.1,4.4597]
[1754572403033,8.86256989,3845.8,3845.3,10.22308695]
[1754572403325,1.5091,3845.7,3845.3,10.22308695]
[1754572403580,5.0397,3845.6,3845.3,10.22308695]
[1754572403766,3.998,3845.6,3845.3,10.22308695]
[1754572403940,1.0417,3845.5,3845.3,10.22308695]
[1754572404345,1.0417,3845.4,3845.3,10.22308695]
[1754572404746,1.0417,3845.4,3845.3,12.82366427]
[1754572405044,1.0417,3845.4,3845.2,2.60062581]
[1754572405390,1.0417,3845.4,3845.3,10.22308695]
[1754572405687,1.0417,3845.4,3845.3,12.82366427]
[1754572405892,1.0417,3845.4,3845.3,10.22308695]
[1754572406050,1.0417,3845.4,3845.3,12.82366427]
[1754572406353,3.998,3845.6,3845.3,10.22308695]
[1754572406545,5.0397,3845.6,3845.3,10.22308695]
[1754572406747,5.0397,3845.6,3845.3,12.82361427]
[1754572406948,1.0417,3845.5,3845.3,10.22308695]
[1754572407348,1.0417,3845.4,3845.3,10.22308695]
[1754572408754,1.0417,3845.4,3845.3,12.82366427]
[1754572409288,3.998,3845.6,3845.5,2.60044207]
[1754572409510,0.002,3846.1,3845.5,6.59744207]
[1754572409803,0.002,3846.1,3846.0,12.82319095]
[1754572409960,0.002,3846.1,3846.0,30.89446395]
[1754572410282,0.002,3846.3,3846.0,30.89446395]
[1754572410283,0.002,3846.3,3846.2,2.5999688]
[1754572410482,0.002,3846.3,3846.2,9.5969688]
[1754572410684,0.002,3846.3,3846.2,39.5969688]
[1754572410872,0.002,3846.3,3846.2,40.5476688]
[1754572411707,0.002,3846.3,3846.2,41.0976688]
[1754572412008,0.002,3846.6,3846.3,6.1499012]
[1754572412203,0.002,3846.6,3846.5,13.37285297]
[1754572412396,0.002,3846.6,3846.5,43.37285297]
[1754572412594,0.002,3846.8,3846.6,6.14969843]
[1754572412805,0.002,3846.8,3846.7,40.14563085]
[1754572413139,0.002,3847.0,3846.9,2.59949569]
[1754572413290,0.002,3847.0,3846.9,49.81858264]
[1754572413615,0.002,3847.0,3846.9,46.77120464]
[1754572414102,0.002,3847.0,3846.9,29.56146764]
[1754572414297,0.002,3847.0,3846.9,20.76828264]
[1754572414812,0.002,3847.0,3846.9,44.37179464]
[1754572415034,0.002,3847.0,3846.9,44.42358064]
[1754572415509,0.002,3847.0,3846.9,49.34903764]
[1754572415892,0.002,3847.0,3846.9,47.52654164]
[1754572416434,0.002,3847.0,3846.9,49.20827664]
[1754572416580,0.002,3847.0,3846.9,46.36533664]
[1754572416788,0.002,3847.0,3846.9,46.56127427]
[1754572417091,0.002,3847.0,3846.9,44.02855627]
[1754572417417,0.002,3847.0,3846.9,49.94672627]
[1754572417624,0.002,3847.0,3846.9,46.17506327]
[1754572418517,0.002,3847.0,3846.9,46.74310027]
[1754572419559,0.002,3847.0,3846.9,47.51939327]
[1754572419858,0.002,3847.0,3846.9,47.02939327]
[1754572420010,0.002,3847.0,3846.9,40.25625227]
[1754572420207,0.002,3847.0,3846.9,39.29784127]
[1754572420423,0.002,3847.0,3846.9,25.28865727]
[1754572420629,0.002,3847.0,3846.9,28.38212527]
[1754572421402,0.002,3847.0,3846.9,35.90058627]
[1754572421603,0.002,3847.0,3846.9,35.37485227]
[1754572421847,0.002,3847.0,3846.9,33.60457727]
[1754572422342,0.002,3847.0,3846.9,37.90457727]
[1754572422541,0.002,3847.0,3846.9,41.08174127]
[1754572422728,0.002,3847.0,3846.9,38.04392627]
[1754572422924,0.002,3847.0,3846.9,35.82396527]
[1754572423470,0.002,3847.0,3846.9,24.77222027]
[1754572423641,0.002,3847.0,3846.9,40.86396927]
[1754572424618,0.002,3847.0,3846.9,54.77222027]
[1754572424821,0.002,3847.0,3846.9,54.77122027]
[1754572425027,0.002,3847.0,3846.9,55.32122027]
[1754572425226,0.002,3847.0,3846.9,55.81122027]
[1754572428020,0.002,3847.0,3846.9,43.71268427]
[1754572428352,0.002,3847.0,3846.9,43.40828827]
[1754572428672,0.002,3847.0,3846.9,47.46448127]
[1754572429161,0.002,3847.0,3846.9,41.68272627]
[1754572429366,1.0437,3847.0,3846.9,30.60420927]
[1754572429577,1.5111,3847.0,3846.9,30.60420927]
[1754572429728,1.5111,3847.0,3846.9,36.19325427]
[1754572430146,1.5111,3847.0,3846.9,30.96322727]
[1754572430637,1.5111,3847.0,3846.9,29.80327227]
[1754572431663,0.002,3847.2,3847.0,5.38832812]
[1754572431963,0.002,3847.2,3847.0,15.34221912]
[1754572432482,0.002,3847.2,3847.0,14.43489212]
[1754572432827,0.002,3847.2,3847.0,17.82690512]
[1754572433371,0.002,3847.2,3847.0,16.85284812]
[1754572433731,1.0048,3847.1,3847.0,16.85284812]
[1754572433943,1.0048,3847.1,3847.0,19.52208912]
[1754572434141,1.0048,3847.1,3847.0,18.97971812]
[1754572434929,1.0048,3847.1,3847.0,24.35143712]
[1754572435165,1.0048,3847.1,3847.0,18.50202712]
[1754572436028,0.002,3847.1,3847.0,36.99877712]
[1754572436229,0.002,3847.1,3847.0,38.50617712]
[1754572436970,0.002,3847.1,3847.0,40.88572812]
[1754572438258,0.002,3847.1,3847.0,36.89572812]
[1754572438539,0.002,3847.1,3847.0,38.47163212]
[1754572438930,0.002,3847.1,3847.0,9.81372812]
[1754572439127,0.002,3847.1,3847.0,38.39176412]
[1754572439678,0.002,3847.1,3847.0,37.08987812]
[1754572439835,0.002,3847.1,3847.0,36.15887812]
[1754572440038,0.002,3847.1,3847.0,37.04314712]
[1754572440271,0.24545754,3847.1,3847.0,37.04314712]
[1754572440463,0.24545754,3847.1,3847.0,29.84313112]
[1754572440651,0.24545754,3847.1,3847.0,20.61979512]
[1754572440960,0.24545754,3847.1,3847.0,19.03954012]
[1754572441129,0.24545754,3847.1,3847.0,16.54792812]
[1754572442041,0.24558892,3847.1,3847.0,28.25046912]
[1754572442471,0.24558892,3847.1,3847.0,27.59579712]
[1754572442978,1.24838892,3847.1,3847.0,10.86460312]
[1754572443278,1.68048892,3847.1,3847.0,3.988]
[1754572443575,1.68048892,3847.1,3847.0,6.58742812]
[1754572445689,1.68048892,3847.1,3846.9,3.19593763]
[1754572445690,1.84893781,3847.1,3846.9,3.988]
[1754572445842,0.67568892,3847.0,3846.9,3.988]
[1754572446048,1.80808892,3847.0,3846.9,3.988]
[1754572446262,2.52600417,3847.0,3846.9,3.988]
[1754572446775,2.52600417,3847.0,3846.8,10.22308695]
[1754572446975,1.24638892,3846.9,3846.8,13.22308695]
[1754572447287,1.24638892,3846.9,3846.8,17.21108695]
[1754572447490,1.37598892,3846.9,3846.8,17.21108695]
[1754572447946,1.1324,3846.9,3846.8,17.21108695]
[1754572448147,1.1324,3846.9,3846.1,0.001]
[1754572448148,1.67852065,3846.9,3846.1,0.001]
[1754572448349,0.84377272,3846.8,3846.1,0.001]
[1754572448679,2.59990797,3846.3,3846.1,0.001]
[1754572448867,2.84355473,3846.2,3846.1,0.001]
[1754572449072,4.0348688,3846.2,3846.1,0.001]
[1754572449580,4.2783517,3846.2,3846.1,0.001]
[1754572452480,4.2783517,3846.2,3846.1,10.22408695]
[1754572452481,1.0245489,3846.2,3846.1,10.22408695]
[1754572452794,1.2462829,3846.2,3846.1,14.21108695]
[1754572453148,1.0028,3846.2,3846.1,14.21108695]
[1754572454401,1.0028,3846.5,3846.1,14.21108695]
[1754572454565,1.0028,3846.4,3846.1,13.26051606]
[1754572454950,1.0028,3846.4,3846.1,10.66048695]
[1754572455352,1.0028,3846.4,3846.1,12.82409402]
[1754572455645,3.987,3846.8,3846.2,0.4364]
[1754572455845,0.24274512,3846.7,3846.6,10.22308695]
[1754572456283,1.24554512,3846.7,3846.6,10.22308695]
[1754572457182,1.2455099,3846.7,3846.6,10.22308695]
[1754572457548,1.24549034,3846.7,3846.6,10.22308695]
[1754572457953,4.9918,3847.1,3846.7,2.59962691]
[1754572458182,0.1296,3846.8,3846.7,2.59962691]
[1754572458986,0.1296,3846.8,3846.6,13.25917208]
[1754572459286,0.1296,3846.8,3846.7,2.59963085]
[1754572459459,0.002,3847.1,3846.7,2.59963085]
[1754572459664,1.24547946,3847.0,3846.9,10.22308695]
[1754572460110,0.1296,3847.0,3846.9,10.22308695]
[1754572460981,1.0991,3847.0,3846.9,10.22308695]
[1754572461701,0.1296,3847.0,3846.9,12.82258264]
[1754572461907,0.002,3847.1,3846.9,13.25698264]
[1754572462072,0.1316,3847.1,3846.9,13.25698264]
[1754572462267,1.1011,3847.1,3846.9,12.82258264]
[1754572465373,0.1316,3847.1,3846.9,13.25698264]
[1754572467004,0.1316,3847.1,3847.0,2.7889]
[1754572467205,0.1316,3847.1,3847.0,5.38832812]
[1754572467409,0.1316,3847.1,3847.0,8.38832812]
[1754572467597,0.002,3847.1,3847.0,9.80642812]
[1754572467792,0.002,3847.1,3847.0,13.79142812]
[1754572468419,0.002,3847.1,3847.0,39.34879212]
[1754572468573,0.002,3847.1,3847.0,6.16342812]
[1754572468772,0.002,3847.1,3847.0,10.14842812]
[1754572469109,0.002,3847.1,3847.0,3.0]
[1754572469275,0.002,3847.1,3846.8,3.985]
[1754572469276,1.5315,3847.1,3846.8,3.985]
[1754572469474,0.9695,3847.0,3846.8,3.985]
[1754572469708,0.1316,3847.1,3846.6,2.73028798]
[1754572469911,2.59963085,3846.7,3846.6,0.001]
[1754572470209,1.750417,3846.9,3846.6,0.001]
[1754572470210,4.34992488,3846.9,3846.6,0.001]
[1754572470411,0.1296,3846.7,3846.6,0.001]
[1754572470806,3.69873085,3846.7,3846.6,0.001]
[1754572471403,1.0991,3846.7,3846.6,0.001]
[1754572471606,4.12913085,3846.7,3846.6,0.001]
[1754572472786,4.37216995,3846.7,3846.6,0.001]
[1754572472987,3.94176995,3846.7,3846.6,0.001]
[1754572473183,8.35616995,3846.7,3846.6,0.001]
[1754572475482,8.35628135,3846.7,3846.6,0.001]
[1754572475684,9.52995271,3846.7,3846.6,0.001]
[1754572478009,24.02995271,3846.7,3846.6,0.001]
[1754572479114,24.13409171,3846.7,3846.6,0.001]
[1754572481484,24.1340192,3846.7,3846.6,0.001]
[1754572484402,23.89094121,3846.7,3846.6,0.001]
[1754572484597,24.13395634,3846.7,3846.6,0.001]
[1754572485005,24.13395689,3846.7,3846.6,0.001]
[1754572489723,24.02981789,3846.7,3846.6,0.001]
[1754572490444,23.59841789,3846.7,3846.6,0.001]
[1754572491915,24.03641789,3846.7,3846.6,0.001]
[1754572492326,23.59841789,3846.7,3846.6,0.001]
[1754572493213,24.03641789,3846.7,3846.6,0.001]
[1754572493414,24.03633545,3846.7,3846.6,0.001]
[1754572494314,23.59833545,3846.7,3846.6,0.001]
[1754572497247,24.03633545,3846.7,3846.6,0.001]
[1754572498940,18.64583545,3846.7,3846.6,0.001]
[1754572499325,22.62783545,3846.7,3846.6,0.001]
[1754572500257,23.56663545,3846.7,3846.6,0.001]
[1754572501545,22.62783545,3846.7,3846.6,0.001]
[1754572501753,22.38490221,3846.7,3846.6,0.001]
[1754572501927,4.14641339,3846.7,3846.6,0.4479]
[1754572502127,6.95474203,3846.7,3846.6,1.4246]
[1754572502354,6.95477907,3846.7,3846.6,1.4246]
[1754572502664,6.95477925,3846.7,3846.6,1.4246]
[1754572503653,6.95477925,3846.7,3846.6,0.4479]
[1754572504051,6.95477925,3846.7,3846.6,1.4246]
[1754572505147,6.95486148,3846.7,3846.6,1.4246]
[1754572505357,0.37323063,3846.7,3846.6,1.4246]
[1754572505544,4.35523063,3846.7,3846.6,1.4246]
[1754572506366,6.95486148,3846.7,3846.6,0.001]
[1754572506542,6.95486148,3846.7,3846.6,0.4479]
[1754572510291,4.35523063,3846.7,3846.6,0.4479]
[1754572510465,4.35523063,3846.7,3846.6,1.4246]
[1754572510776,6.95486148,3846.7,3846.6,1.4246]
[1754572510979,6.71123085,3846.7,3846.6,1.4246]
[1754572511181,2.97273182,3846.7,3846.6,1.4246]
[1754572511383,6.95373182,3846.7,3846.6,1.4246]
[1754572511562,6.95373182,3846.7,3846.6,0.4479]
[1754572511881,7.89253182,3846.7,3846.6,0.001]
[1754572512253,0.37310097,3846.7,3846.6,0.001]
[1754572512463,4.35410097,3846.7,3846.6,1.4246]
[1754572512868,6.95373182,3846.7,3846.6,1.4246]
[1754572513254,6.95373182,3846.7,3846.6,0.4479]
[1754572513455,6.95373182,3846.7,3846.6,0.001]
[1754572513801,7.89253182,3846.7,3846.6,0.001]
[1754572514296,6.9536969,3846.7,3846.6,0.001]
[1754572515872,4.35406605,3846.7,3846.6,0.4479]
[1754572516085,6.9536969,3846.7,3846.6,0.4479]
[1754572517196,6.95368991,3846.7,3846.6,0.4479]
[1754572518390,6.95368991,3846.7,3846.6,0.001]
[1754572518717,7.89248991,3846.7,3846.6,0.001]
[1754572518914,8.27778584,3846.7,3846.6,0.001]
[1754572519196,8.71578584,3846.7,3846.6,0.001]
[1754572519702,23.21578584,3846.7,3846.6,0.001]
[1754572520215,18.79683336,3846.7,3846.6,0.001]
[1754572520364,21.83703336,3846.7,3846.6,0.001]
[1754572520565,22.82323336,3846.7,3846.6,0.001]
[1754572520764,22.82322779,3846.7,3846.6,0.001]
[1754572521477,17.85802779,3846.7,3846.6,0.001]
[1754572521676,21.83702779,3846.7,3846.6,0.469]
[1754572521864,22.82322779,3846.7,3846.6,0.001]
[1754572522088,8.32322779,3846.7,3846.6,0.001]
[1754572523265,8.32323181,3846.7,3846.6,0.001]
[1754572528505,8.75233181,3846.7,3846.6,0.001]
[1754572528807,23.25233181,3846.7,3846.6,0.001]
[1754572529210,23.00882678,3846.7,3846.6,0.001]
[1754572529418,23.25246634,3846.7,3846.6,0.001]
[1754572529784,23.11297178,3846.7,3846.6,0.001]
[1754572529986,23.35659641,3846.7,3846.6,0.001]
[1754572532320,23.35654499,3846.7,3846.6,0.001]
[1754572534927,22.92744499,3846.7,3846.6,0.001]
[1754572535225,23.35648211,3846.7,3846.6,0.001]
[1754572535526,22.92738211,3846.7,3846.6,0.001]
[1754572538207,22.92735413,3846.7,3846.6,0.001]
[1754572538527,22.92735409,3846.7,3846.6,0.001]
[1754572538951,22.92734598,3846.7,3846.6,0.001]
[1754572539542,22.92734488,3846.7,3846.6,0.001]
[1754572546755,22.82319988,3846.7,3846.6,0.001]
[1754572547564,22.8233195,3846.7,3846.6,0.001]
[1754572548374,17.47282357,3846.7,3846.6,0.001]
[1754572548560,6.94882357,3846.7,3846.6,11.65368695]
[1754572548763,6.94882357,3846.7,3846.6,1.4306]
[1754572550658,4.34919272,3846.7,3846.6,1.4306]
[1754572550840,6.94882357,3846.7,3846.6,1.4306]
[1754572551478,4.34919272,3846.7,3846.6,1.4306]
[1754572552554,18.84919272,3846.7,3846.6,1.4306]
[1754572553156,21.44882357,3846.7,3846.6,1.4306]
[1754572553351,21.44882357,3846.7,3846.6,0.469]
[1754572553779,21.44882357,3846.7,3846.6,0.001]
[1754572554001,17.47282357,3846.7,3846.6,0.001]
[1754572554298,21.44782357,3846.7,3846.6,0.4579]
[1754572554462,17.47282357,3846.7,3846.6,0.4579]
[1754572554666,22.40682357,3846.7,3846.6,0.001]
[1754572555367,24.90765595,3846.7,3846.6,0.001]
[1754572555568,25.34135595,3846.7,3846.6,0.001]
[1754572556300,24.90765595,3846.7,3846.6,0.001]
[1754572556799,24.90767946,3846.7,3846.6,0.001]
[1754572557702,10.40767946,3846.7,3846.6,0.001]
[1754572557908,7.90684708,3846.7,3846.6,0.001]
[1754572558215,22.40684708,3846.7,3846.6,0.001]
[1754572558575,22.86474708,3846.7,3846.6,0.001]
[1754572558786,23.29844708,3846.7,3846.6,0.001]
[1754572559414,2.5999012,3846.3,3846.2,0.001]
[1754572559614,7.4038952,3846.3,3846.2,0.001]
[1754572559814,8.3628952,3846.3,3846.2,0.001]
[1754572560017,8.4670472,3846.3,3846.2,0.001]
[1754572560217,8.9007472,3846.3,3846.2,0.001]
[1754572560439,10.28378851,3846.3,3846.2,0.001]
[1754572561485,10.28381688,3846.3,3846.2,0.001]
[1754572561895,10.2838154,3846.3,3846.2,0.001]
[1754572562100,10.52745575,3846.3,3846.2,0.001]
[1754572562296,25.02745575,3846.3,3846.2,0.001]
[1754572562501,25.0273871,3846.3,3846.2,0.001]
[1754572564789,24.5936871,3846.3,3846.2,0.001]
[1754572565154,24.10647228,3846.3,3846.2,0.001]
[1754572565316,24.59355698,3846.3,3846.2,0.001]
[1754572566409,24.59255698,3846.3,3846.2,0.001]
[1754572566610,25.02625698,3846.3,3846.2,0.001]
[1754572568045,3.1499688,3846.2,3846.0,1e-08]
[1754572568208,3.15030683,3845.7,3845.4,0.001]
[1754572568408,7.74176376,3845.7,3845.4,0.001]
[1754572568710,24.92867311,3845.7,3845.4,0.001]
[1754572569034,31.17367311,3845.7,3845.6,1e-08]
[1754572569420,31.27786111,3845.7,3845.6,1e-08]
[1754572570538,31.27786111,3845.7,3845.4,0.001]
[1754572570539,2.60044207,3845.5,3845.4,0.001]
[1754572570741,9.87577828,3845.5,3845.4,0.001]
[1754572571055,11.26847828,3845.5,3845.4,0.001]
[1754572571414,15.27637828,3845.5,3845.4,1e-08]
[1754572572832,29.77637828,3845.5,3845.4,1e-08]
[1754572573038,28.79267828,3845.5,3845.4,1e-08]
[1754572573539,29.22637828,3845.5,3845.4,1e-08]
[1754572574274,28.98226414,3845.5,3845.4,1e-08]
[1754572574481,29.46814974,3845.5,3845.4,1e-08]
[1754572574774,2.60078023,3845.0,3844.8,0.001]
[1754572574979,7.58081382,3845.0,3844.8,0.001]
[1754572575270,8.29687102,3845.0,3844.8,0.001]
[1754572575474,21.31672303,3845.0,3844.9,11.60858695]
[1754572575669,21.44712303,3845.0,3844.9,11.60858695]
[1754572576538,14.8733428,3845.0,3844.9,11.60858695]
[1754572576738,0.3733428,3845.0,3844.9,14.20943482]
[1754572577091,4.3473428,3845.0,3844.9,17.20943482]
[1754572577381,0.24294279,3845.5,3845.0,3.0]
[1754572577581,0.1304,3845.1,3845.0,1.3845]
[1754572577873,4.1044,3845.1,3845.0,3.98528023]
[1754572578472,0.24294279,3845.5,3845.3,2.60051014]
[1754572578673,0.24294279,3845.5,3845.4,10.22308695]
[1754572578975,4.21594279,3845.5,3845.4,11.60758695]
[1754572579175,4.34634279,3845.5,3845.4,11.60758695]
[1754572579340,0.37334279,3845.5,3845.4,11.60758695]
[1754572579670,4.34634279,3845.5,3845.4,11.60758695]
[1754572581274,4.34634279,3845.5,3845.4,0.4569]
[1754572581575,4.34634279,3845.5,3845.4,1.3711]
[1754572582540,18.84634279,3845.5,3845.4,1.3711]
[1754572583671,4.34634279,3845.5,3845.4,1.3711]
[1754572586581,6.94678486,3845.5,3845.4,1.3711]
[1754572586879,4.34634279,3845.5,3845.4,1.3711]
[1754572587081,2.97378486,3845.5,3845.4,0.4569]
[1754572587246,6.94578486,3845.5,3845.4,0.4569]
[1754572587671,4.34534279,3845.5,3845.4,1.3711]
[1754572588682,0.37334279,3845.5,3845.4,1.3711]
[1754572588890,4.34534279,3845.5,3845.4,1.3711]
[1754572589486,4.58847097,3845.5,3845.4,1.3711]
[1754572590284,4.58847097,3845.5,3845.4,0.4569]
[1754572591456,4.58847097,3845.5,3845.4,1.3711]
[1754572592054,0.61647097,3845.5,3845.4,1.3711]
[1754572592253,4.58847097,3845.5,3845.4,1.3711]
[1754572592466,4.34534279,3845.5,3845.4,1.3711]
[1754572592876,4.58848971,3845.5,3845.4,1.3711]
[1754572593388,4.58848707,3845.5,3845.4,1.3711]
[1754572594288,4.58848707,3845.5,3845.4,4.16]
[1754572595681,4.34534279,3845.5,3845.4,4.16]
[1754572595907,4.58848366,3845.5,3845.4,4.16]
[1754572596893,4.58848366,3845.5,3845.4,3.2458]
[1754572597566,4.59048366,3845.5,3845.4,3.2458]
[1754572601671,4.59048366,3845.5,3845.4,2.7889]
[1754572601866,4.34734279,3845.5,3845.4,2.7889]
[1754572602105,4.5904843,3845.5,3845.4,2.7889]
[1754572602300,4.5904843,3845.5,3845.4,3.2542]
[1754572602969,4.5904843,3845.5,3845.4,4.1684]
[1754572603172,4.59052326,3845.5,3845.4,4.1684]
[1754572603491,0.61852326,3845.5,3845.4,9.76890969]
[1754572603692,0.45777777,3846.3,3845.9,2.60012828]
[1754572603988,0.002,3846.3,3846.2,13.22308695]
[1754572604193,4.1016,3846.3,3846.2,13.22308695]
[1754572604573,4.1016,3846.3,3846.2,14.60258695]
[1754572604775,4.1016,3846.3,3846.2,13.68838695]
[1754572605705,4.1016,3846.3,3846.2,17.20255575]
[1754572606074,4.1016,3846.3,3846.2,14.60258695]
[1754572606274,4.1016,3846.3,3846.2,13.68838695]
[1754572606473,2.5999688,3846.2,3844.9,0.001]
[1754572606704,3.97,3846.1,3844.9,0.001]
[1754572606905,3.97,3846.1,3845.0,10.22408695]
[1754572607081,2.60066099,3845.2,3845.0,10.22408695]
[1754572607405,3.97,3845.1,3845.0,10.68938695]
[1754572609279,6.57071259,3845.1,3845.0,10.68938695]
[1754572609480,7.46431259,3845.1,3845.0,10.22408695]
[1754572610109,7.46431259,3845.1,3845.0,0.001]
[1754572610484,7.92511259,3845.1,3845.0,0.001]
[1754572611621,7.46431259,3845.1,3845.0,0.001]
[1754572611806,0.8861,3845.3,3845.0,10.22408695]
[1754572612112,3.97,3845.2,3845.1,0.4523]
[1754572613425,3.97,3845.2,3845.1,1.3676]
[1754572614018,3.969,3845.2,3845.1,1.3676]
[1754572614431,2.60024107,3845.8,3845.1,3.96831259]
[1754572614633,3.969,3845.7,3845.5,10.22308695]
[1754572614835,3.969,3845.7,3845.5,10.67538695]
[1754572615224,0.4608,3846.2,3845.5,10.67538695]
[1754572615225,2.60008674,3846.1,3845.5,10.22308695]
[1754572615422,3.969,3846.0,3845.9,10.22308695]
[1754572615731,4.21220323,3846.0,3845.9,10.67538695]
[1754572616455,0.24320323,3846.0,3845.9,10.67538695]
[1754572616606,0.24320323,3846.0,3845.9,11.59068695]
[1754572616607,0.37360323,3846.0,3845.9,11.59068695]
[1754572616806,4.34260323,3846.0,3845.9,11.59068695]
[1754572617034,4.34260323,3846.0,3845.9,10.67538695]
[1754572617246,4.34260323,3846.0,3845.9,13.27555856]
[1754572617540,0.24320323,3846.0,3845.9,17.19085856]
[1754572617754,0.24320323,3846.0,3845.9,17.32125856]
[1754572617937,0.002,3846.3,3846.0,5.60009445]
[1754572618093,0.24312428,3846.2,3846.1,5.6000364]
[1754572618298,0.24312428,3846.2,3846.1,17.19072335]
[1754572619451,0.002,3846.3,3846.2,2.5999688]
[1754572619757,0.002,3846.3,3846.2,6.9675688]
[1754572619758,0.24499462,3846.3,3846.2,6.9675688]
[1754572619903,0.002,3846.3,3846.2,29.4552408]
[1754572620953,0.002,3846.3,3846.2,30.0052408]
[1754572622074,0.002,3846.3,3846.2,27.1102208]
[1754572622240,0.002,3846.3,3846.2,26.6353208]
[1754572622443,0.002,3846.3,3846.2,28.9708818]
[1754572622682,0.002,3846.3,3846.2,25.7179068]
[1754572623261,0.002,3846.3,3846.2,30.2857868]
[1754572624127,0.002,3846.3,3846.2,6.9675688]
[1754572624440,0.002,3846.3,3846.2,10.0202688]
[1754572624873,0.002,3846.3,3846.2,13.6470388]
[1754572625065,0.002,3846.3,3846.2,10.9355688]
[1754572625224,0.002,3846.3,3846.2,20.1947388]
[1754572625423,0.002,3846.3,3846.2,18.8970388]
[1754572625740,0.002,3846.3,3846.2,20.3623388]
[1754572626144,0.002,3846.3,3846.2,38.6461518]
[1754572626454,0.002,3846.3,3846.2,10.1082308]
[1754572626653,0.002,3846.3,3846.2,10.0202688]
[1754572626857,0.002,3846.3,3846.2,9.5679688]
[1754572627171,0.002,3846.3,3846.2,13.6967768]
[1754572627743,0.002,3846.3,3846.2,23.1248728]
[1754572627968,0.002,3846.3,3846.2,9.0525908]
[1754572628176,0.002,3846.3,3846.2,13.0205908]
[1754572628767,0.002,3846.3,3846.2,15.1430858]
[1754572628967,0.002,3846.3,3846.2,13.7237668]
[1754572629187,0.8881,3846.3,3846.2,9.5669688]
[1754572629689,0.002,3846.3,3846.2,9.5669688]
[1754572629861,1.3489,3846.3,3844.8,0.001]
[1754572630061,2.60045385,3845.5,3844.8,0.001]
[1754572630264,2.80153725,3846.2,3844.8,0.001]
[1754572630265,2.6005623,3845.4,3844.8,0.001]
[1754572630467,1.3469,3845.4,3845.0,10.22408695]
[1754572630669,1.3469,3845.3,3845.0,10.22408695]
[1754572630900,0.8861,3845.2,3845.0,10.22408695]
[1754572631381,0.8861,3845.2,3845.1,3.0]
[1754572631882,0.8861,3845.2,3845.0,0.001]
[1754572632067,0.8861,3845.2,3845.1,3.0]
[1754572633569,0.8861,3845.2,3845.0,0.001]
[1754572633770,0.8861,3845.2,3845.0,10.22408695]
[1754572634084,0.8861,3845.2,3845.1,3.0]
[1754572635772,14.5,3845.5,3845.1,3.0]
[1754572635972,1.12860296,3845.4,3845.1,3.0]
[1754572636273,0.8861,3845.3,3845.1,3.0]
[1754572639105,15.3861,3845.5,3845.1,3.0]
[1754572639311,0.24253922,3845.4,3845.2,2.60064495]
[1754572639606,0.8861,3845.4,3845.2,2.60064495]
[1754572639781,0.781212,3845.8,3845.3,12.82362158]
[1754572639982,3.81222291,3846.2,3845.6,10.22308695]
[1754572639983,18.74454755,3845.7,3845.6,10.22308695]
[1754572640417,4.37494755,3845.7,3845.6,12.8234614]
[1754572640915,0.37294755,3845.7,3845.6,10.22308695]
[1754572642378,0.37294755,3845.7,3845.6,12.8234614]
[1754572642577,0.37294755,3845.7,3845.6,13.7136614]
[1754572643290,0.37294755,3845.7,3845.6,12.8234614]
[1754572643810,0.37311775,3845.7,3845.6,14.1507614]
[1754572644109,0.37311775,3845.7,3845.6,13.7136614]
[1754572644310,0.37311775,3845.7,3845.6,12.8234614]
[1754572644883,0.37311775,3845.7,3845.6,10.22308695]
[1754572645506,0.37311775,3845.7,3845.6,12.8234614]